fUST/lending_fUST_20250302
["ID","MTS","AMOUNT","RATE_DAILY","PERIOD"]
[354980244,1740855048279,-500.0,0.0002562,2]
[354980245,1740855048289,-705.19,0.0002562,2]
[354980246,1740855048300,-500.0,0.0002562,2]
[354980247,1740855048310,-500.0,0.0002562,2]
[354980248,1740855048320,-500.0,0.0002562,2]
[354980249,1740855048330,-500.0,0.0002562,2]
[354980250,1740855048340,-500.0,0.0002562,2]
[354980251,1740855048350,-500.0,0.0002562,2]
[354980252,1740855048360,-500.0,0.0002562,2]
[354980253,1740855048370,-500.0,0.0002562,2]
[354980254,1740855048379,-500.0,0.0002562,2]
[354980255,1740855048389,-500.0,0.0002562,2]
[354980256,1740855048399,-500.0,0.0002562,2]
[354980257,1740855048409,-500.0,0.0002562,2]
[354980258,1740855048419,-251.63711037,0.0002562,2]
[354980259,1740855048428,-504.23838916,0.0002562,2]
[354980260,1740855048439,-619.34,0.0002562,2]
[354980261,1740855048448,-500.0,0.0002562,2]
[354980262,1740855048458,-502.19316259,0.0002562,2]
[354980263,1740855048467,-500.0,0.0002562,2]
[354980264,1740855048477,-500.0,0.0002562,2]
[354980265,1740855048487,-500.0,0.0002562,2]
[354980266,1740855048497,-500.0,0.0002562,2]
[354980267,1740855048506,-3275.04,0.0002562,2]
[354980268,1740855048516,-500.0,0.0002562,2]
[354980269,1740855048526,-500.0,0.0002562,2]
[354980270,1740855048536,-525.66281093,0.0002562,2]
[354980271,1740855048547,-500.0,0.0002562,2]
[354980272,1740855048556,-641.28,0.0002562,2]
[354980273,1740855048566,-500.0,0.0002562,2]
[354980274,1740855048576,-500.0,0.0002562,2]
[354980275,1740855048586,-500.0,0.0002562,2]
[354980276,1740855048596,-541.86674352,0.0002562,2]
[354980277,1740855048606,-500.0,0.0002562,2]
[354980278,1740855048616,-500.0,0.0002562,2]
[354980279,1740855048626,-500.0,0.0002562,2]
[354980280,1740855048636,-500.0,0.0002562,2]
[354980281,1740855048646,-500.0,0.0002562,2]
[354980282,1740855048655,-500.0,0.0002562,2]
[354980283,1740855048665,-500.0,0.0002562,2]
[354980284,1740855048675,-500.0,0.0002562,2]
[354980285,1740855048685,-504.88748835,0.0002562,2]
[354980286,1740855048695,-500.0,0.0002562,2]
[354980287,1740855048705,-500.0,0.0002562,2]
[354980288,1740855048715,-200.0,0.0002562,2]
[354980289,1740855048725,-500.0,0.0002562,2]
[354980290,1740855048734,-500.0,0.0002562,2]
[354980291,1740855048745,-1080.3,0.0002562,2]
[354980292,1740855048754,-500.0,0.0002562,2]
[354980293,1740855048764,-616.46,0.0002562,2]
[354980294,1740855048774,-500.0,0.0002562,2]
[354980295,1740855048784,-500.0,0.0002562,2]
[354980296,1740855048794,-507.40677207,0.0002562,2]
[354980297,1740855048804,-500.0,0.0002562,2]
[354980298,1740855048814,-500.0,0.0002562,2]
[354980299,1740855048824,-500.0,0.0002562,2]
[354980300,1740855048835,-500.0,0.0002562,2]
[354980301,1740855048844,-500.0,0.0002562,2]
[354980302,1740855048854,-500.0,0.0002562,2]
[354980303,1740855048864,-500.0,0.0002562,2]
[354980304,1740855048874,-500.0,0.0002562,2]
[354980305,1740855048884,-500.0,0.0002562,2]
[354980306,1740855048894,-500.0,0.0002562,2]
[354980307,1740855048903,-11967.8,0.0002562,2]
[354980308,1740855048914,-500.0,0.0002562,2]
[354980309,1740855048924,-500.0,0.0002562,2]
[354980310,1740855048934,-575.35,0.0002562,2]
[354980311,1740855048944,-154.865842,0.0002562,7]
[354980312,1740855048954,-500.0,0.0002562,2]
[354980313,1740855048964,-5244.9,0.0002562,2]
[354980314,1740855048974,-5882.25,0.0002562,2]
[354980315,1740855048985,-500.0,0.0002562,2]
[354980316,1740855048995,-500.0,0.0002562,2]
[354980317,1740855049006,-508.21567651,0.0002562,2]
[354980318,1740855049017,-500.0,0.0002562,2]
[354980319,1740855049030,-3882.39,0.0002562,2]
[354980320,1740855049316,-507.73550867,0.0002562,2]
[354980321,1740855049327,-1572.41,0.0002562,2]
[354980322,1740855049337,-500.0,0.0002562,2]
[354980323,1740855049346,-500.0,0.0002562,2]
[354980324,1740855049356,-2754.61,0.0002562,2]
[354980325,1740855049365,-509.14059452,0.0002562,2]
[354980326,1740855049375,-500.0,0.0002562,2]
[354980327,1740855049385,-151.0,0.0002562,7]
[354980328,1740855049395,-500.0,0.0002562,2]
[354980329,1740855049405,-500.0,0.0002562,2]
[354980330,1740855049415,-500.0,0.0002562,2]
[354980331,1740855049427,-511.12506657,0.0002562,2]
[354980332,1740855049444,-151.0,0.0002562,7]
[354980333,1740855049455,-500.0,0.0002562,2]
[354980334,1740855049466,-1159.94,0.0002562,2]
[354980335,1740855049476,-500.0,0.0002562,2]
[354980336,1740855049486,-528.94,0.0002562,2]
[354980337,1740855049495,-500.0,0.0002562,2]
[354980338,1740855049504,-500.0,0.0002562,2]
[354980339,1740855049514,-500.0,0.0002562,2]
[354980340,1740855049523,-500.0,0.0002562,2]
[354980341,1740855049533,-2704.85,0.0002562,2]
[354980342,1740855049542,-500.0,0.0002562,2]
[354980343,1740855049552,-4769.86,0.0002562,2]
[354980344,1740855049561,-935.8,0.0002562,2]
[354980345,1740855049571,-500.0,0.0002562,2]
[354980346,1740855049580,-500.0,0.0002562,2]
[354980347,1740855049590,-392.22335196,0.0002562,2]
[354980348,1740855049601,-500.0,0.0002562,2]
[354980349,1740855049611,-500.0,0.0002562,2]
[354980350,1740855049622,-9095.68,0.0002562,2]
[354980351,1740855049632,-500.0,0.0002562,2]
[354980352,1740855049642,-500.0,0.0002562,2]
[354980353,1740855049652,-500.0,0.0002562,2]
[354980354,1740855049661,-500.0,0.0002562,2]
[354980355,1740855049671,-500.0,0.0002562,2]
[354980356,1740855049681,-500.0,0.0002562,2]
[354980357,1740855049690,-500.0,0.0002562,2]
[354980358,1740855049700,-500.0,0.0002562,2]
[354980359,1740855049710,-500.0,0.0002562,2]
[354980360,1740855049719,-500.0,0.0002562,2]
[354980361,1740855049728,-522.33,0.0002562,2]
[354980362,1740855049738,-500.0,0.0002562,2]
[354980363,1740855049748,-500.0,0.0002562,2]
[354980364,1740855049758,-151.0,0.0002562,7]
[354980365,1740855049767,-3240.19,0.0002562,2]
[354980366,1740855049776,-500.0,0.0002562,2]
[354980367,1740855049786,-500.0,0.0002562,2]
[354980368,1740855049795,-610.53,0.0002562,2]
[354980369,1740855049805,-500.0,0.0002562,2]
[354980370,1740855049815,-500.0,0.0002562,2]
[354980371,1740855049825,-1761.88,0.0002562,2]
[354980372,1740855049834,-500.0,0.0002562,2]
[354980373,1740855049845,-500.0,0.0002562,2]
[354980374,1740855049854,-634.21803824,0.0002562,2]
[354980375,1740855049863,-202.440147,0.0002562,7]
[354980376,1740855049873,-500.0,0.0002562,2]
[354980377,1740855049882,-500.0,0.0002562,2]
[354980378,1740855049892,-500.0,0.0002562,2]
[354980379,1740855049901,-1342.36,0.0002562,2]
[354980380,1740855049911,-500.0,0.0002562,2]
[354980381,1740855049921,-500.0,0.0002562,2]
[354980382,1740855049930,-202.440147,0.0002562,7]
[354980383,1740855049940,-500.0,0.0002562,2]
[354980384,1740855049950,-500.0,0.0002562,2]
[354980385,1740855049959,-500.0,0.0002562,2]
[354980386,1740855049969,-63634.0907745,0.00025621,8]
[354980387,1740855049979,-137030.38859193,0.00025621,8]
[354980388,1740855049988,-500.0,0.00025621,2]
[354980389,1740855049998,-500.0,0.00025621,2]
[354980390,1740855050007,-500.0,0.00025621,2]
[354980391,1740855050017,-500.0,0.00025621,2]
[354980392,1740855050029,-654.89,0.00025621,2]
[354980393,1740855050039,-500.0,0.00025621,2]
[354980394,1740855050049,-500.0,0.00025621,2]
[354980395,1740855050059,-500.0,0.00025621,2]
[354980396,1740855050070,-500.0,0.00025621,2]
[354980397,1740855050079,-500.0,0.00025621,2]
[354980398,1740855050089,-1437.03,0.00025621,2]
[354980399,1740855050099,-1254.66,0.00025621,2]
[354980400,1740855050111,-500.0,0.00025621,2]
[354980401,1740855050121,-500.0,0.00025621,2]
[354980402,1740855050131,-500.0,0.00025621,2]
[354980403,1740855050141,-1551.8,0.00025621,2]
[354980404,1740855050150,-500.0,0.00025621,2]
[354980405,1740855050160,-500.0,0.00025621,2]
[354980406,1740855050170,-527.25,0.00025621,2]
[354980407,1740855050180,-500.0,0.00025621,2]
[354980408,1740855050189,-500.0,0.00025621,2]
[354980409,1740855050200,-500.0,0.00025621,2]
[354980410,1740855050210,-500.0,0.00025621,2]
[354980411,1740855050219,-500.0,0.00025621,2]
[354980412,1740855050229,-1000.0,0.00025621,2]
[354980413,1740855050238,-1055.89,0.00025621,2]
[354980414,1740855050248,-500.0,0.00025621,2]
[354980415,1740855050257,-950.83,0.00025621,2]
[354980416,1740855050266,-500.0,0.00025621,2]
[354980417,1740855050276,-500.0,0.00025621,2]
[354980418,1740855050286,-1642.63,0.00025621,2]
[354980419,1740855050295,-1092.64,0.00025621,2]
[354980420,1740855050305,-500.0,0.00025621,2]
[354980421,1740855050315,-1000.2,0.00025621,2]
[354980422,1740855050325,-500.0,0.00025621,2]
[354980423,1740855050334,-2503.55,0.00025621,2]
[354980424,1740855050343,-774.57,0.00025621,2]
[354980425,1740855050353,-1402.37,0.00025621,2]
[354980426,1740855050364,-500.0,0.00025621,2]
[354980427,1740855050374,-867.36,0.00025621,2]
[354980428,1740855050384,-1641.82,0.00025621,2]
[354980429,1740855050393,-8500.67,0.00025621,2]
[354980430,1740855050403,-734.99,0.00025621,2]
[354980431,1740855050412,-3103.25,0.00025621,2]
[354980432,1740855050422,-2234.24,0.00025621,2]
[354980433,1740855050432,-151.0,0.00025621,7]
[354980434,1740855050442,-500.0,0.00025621,2]
[354980435,1740855050451,-1728.59,0.00025621,2]
[354980436,1740855050460,-1166.13,0.00025621,2]
[354980437,1740855050470,-500.0,0.00025621,2]
[354980438,1740855050483,-1347.28,0.00025621,2]
[354980439,1740855050492,-500.0,0.00025621,2]
[354980440,1740855050501,-4230.35,0.00025621,2]
[354980441,1740855050511,-536.56,0.00025621,2]
[354980442,1740855050520,-942.68,0.00025621,2]
[354980443,1740855050530,-1457.98,0.00025621,2]
[354980444,1740855050540,-500.0,0.00025621,2]
[354980445,1740855050549,-1800.73,0.00025621,2]
[354980446,1740855050559,-500.0,0.00025621,2]
[354980447,1740855050568,-1298.89,0.00025621,2]
[354980448,1740855050577,-500.0,0.00025621,2]
[354980449,1740855050587,-151.0,0.00025621,7]
[354980450,1740855050596,-966.19,0.00025621,2]
[354980451,1740855050605,-374.579145,0.00025621,7]
[354980452,1740855050615,-500.0,0.00025621,2]
[354980453,1740855050625,-151.0,0.00025621,7]
[354980454,1740855050635,-374.579145,0.00025621,7]
[354980455,1740855050644,-635.88,0.00025621,2]
[354980456,1740855050654,-500.0,0.00025621,2]
[354980457,1740855050664,-500.0,0.00025621,2]
[354980458,1740855050673,-958.84,0.00025621,2]
[354980459,1740855050683,-151.0,0.00025621,7]
[354980460,1740855050693,-1044.75,0.00025621,2]
[354980461,1740855050703,-1331.232242,0.00025621,7]
[354980462,1740855050712,-500.0,0.00025621,2]
[354980463,1740855050721,-500.0,0.00025621,2]
[354980464,1740855050730,-33578.71,0.00025621,2]
[354980465,1740855050739,-500.0,0.00025621,2]
[354980466,1740855050748,-1331.232242,0.00025621,7]
[354980467,1740855050757,-593.76,0.00025621,2]
[354980468,1740855050767,-1237.03,0.00025621,2]
[354980469,1740855050776,-500.0,0.00025621,2]
[354980470,1740855050786,-151.0,0.00025621,7]
[354980471,1740855050795,-151.0,0.00025621,7]
[354980472,1740855050807,-1822.77,0.00025621,2]
[354980473,1740855050817,-2979.159777,0.00025621,5]
[354980474,1740855050826,-151.0,0.00025621,7]
[354980475,1740855050836,-500.0,0.00025621,2]
[354980476,1740855050845,-2979.159777,0.00025621,5]
[354980477,1740855050855,-855.46,0.00025621,2]
[354980478,1740855050864,-279.370205,0.00025621,7]
[354980479,1740855050874,-279.370205,0.00025621,7]
[354980480,1740855050884,-500.0,0.00025621,2]
[354980481,1740855050893,-260.444132,0.00025621,7]
[354980482,1740855050903,-1439.71,0.00025621,2]
[354980483,1740855050912,-12576.36,0.00025621,2]
[354980484,1740855050922,-260.444132,0.00025621,7]
[354980485,1740855050931,-500.0,0.00025621,2]
[354980486,1740855050941,-1029.65,0.00025621,2]
[354980487,1740855050951,-500.0,0.00025621,2]
[354980488,1740855050960,-500.0,0.00025621,2]
[354980489,1740855050970,-1351.21,0.00025621,2]
[354980490,1740855050980,-500.0,0.00025621,2]
[354980491,1740855050990,-694.07,0.00025621,2]
[354980492,1740855050999,-500.0,0.00025621,2]
[354980493,1740855051008,-377.31,0.00025621,2]
[354980494,1740855051017,-500.0,0.00025621,2]
[354980495,1740855051029,-549.62088816,0.00025621,2]
[354980496,1740855051902,-398.15093894,0.00025346,2]
[354980497,1740855051925,-101.84906106,0.00025346,2]
[354980498,1740855051934,-500.0,0.0002562,2]
[354980499,1740855051944,-380.12911184,0.00025621,2]
[354980500,1740855051953,-4792.28,0.00025621,2]
[354980501,1740855051962,-500.0,0.00025621,2]
[354980502,1740855051971,-500.0,0.00025621,2]
[354980503,1740855051981,-944.34,0.00025621,2]
[354980504,1740855051991,-724.56,0.00025621,2]
[354980505,1740855052000,-328.47959349,0.00025621,2]
[354980506,1740855052009,-500.0,0.00025621,2]
[354980507,1740855052018,-500.0,0.00025621,2]
[354980508,1740855052031,-887.48,0.00025621,2]
[354980509,1740855052040,-1813.76,0.00025621,2]
[354980510,1740855052050,-500.0,0.00025621,2]
[354980511,1740855052059,-500.0,0.00025621,2]
[354980512,1740855052070,-500.0,0.00025621,2]
[354980513,1740855052080,-500.0,0.00025621,2]
[354980514,1740855052089,-500.0,0.00025621,2]
[354980515,1740855052098,-151.0,0.00025621,7]
[354980516,1740855052109,-500.0,0.00025621,2]
[354980517,1740855052118,-500.0,0.00025621,2]
[354980518,1740855052127,-175978.66,0.00025621,2]
[354980519,1740855052136,-500.0,0.00025621,2]
[354980520,1740855052146,-500.0,0.00025621,2]
[354980521,1740855052154,-153.854782,0.00025621,7]
[354980522,1740855052163,-151.0,0.000257,17]
[354980523,1740855052173,-500.0,0.00025721,2]
[354980524,1740855052182,-222.65696791,0.00025721,2]
[354980525,1740855052191,-500.0,0.00025721,2]
[354980526,1740855052201,-500.0,0.00025721,2]
[354980527,1740855052210,-500.0,0.00025721,2]
[354980528,1740855052219,-500.0,0.00025721,2]
[354980529,1740855052228,-500.0,0.00025721,2]
[354980530,1740855052237,-500.0,0.00025721,2]
[354980531,1740855052247,-500.0,0.00025721,2]
[354980532,1740855052256,-500.0,0.00025721,2]
[354980533,1740855052266,-500.0,0.00025721,2]
[354980534,1740855052275,-500.0,0.00025721,2]
[354980535,1740855052284,-500.0,0.00025721,2]
[354980536,1740855052293,-500.0,0.00025721,2]
[354980537,1740855052304,-507.30752933,0.00025721,2]
[354980538,1740855052313,-702.35,0.00025721,2]
[354980539,1740855052323,-500.0,0.00025721,2]
[354980540,1740855052332,-500.0,0.00025721,2]
[354980541,1740855052341,-505.59154182,0.00025721,2]
[354980542,1740855052350,-500.0,0.00025721,2]
[354980543,1740855052360,-500.0,0.00025721,2]
[354980544,1740855052370,-500.0,0.00025721,2]
[354980545,1740855052379,-500.0,0.00025721,2]
[354980546,1740855052389,-500.0,0.00025721,2]
[354980547,1740855052398,-500.0,0.00025721,2]
[354980548,1740855052407,-500.0,0.00025721,2]
[354980549,1740855052417,-500.0,0.00025721,2]
[354980550,1740855052426,-58.3550699,0.00025721,2]
[354980551,1740855052984,-500.0,0.00024999,2]
[354980552,1740855052994,-500.0,0.00024999,2]
[354980553,1740855053005,-500.0,0.00025273,2]
[354980554,1740855053014,-500.0,0.00025346,2]
[354980555,1740855053024,-500.0,0.00025347,2]
[354980556,1740855053038,-500.0,0.00025347,2]
[354980557,1740855053047,-500.0,0.00025547,2]
[354980558,1740855053058,-500.0,0.0002562,2]
[354980559,1740855053067,-500.0,0.00025621,2]
[354980560,1740855053078,-500.0,0.00025621,2]
[354980561,1740855053088,-441.6449301,0.00025721,2]
[354980562,1740855053098,-502.77,0.00025721,2]
[354980563,1740855053107,-396.9366582,0.00025721,2]
[354980564,1740855053124,-103.0633418,0.00025721,2]
[354980565,1740855053133,-500.0,0.00025721,2]
[354980566,1740855053143,-573.12,0.00025721,2]
[354980567,1740855053152,-834.65,0.00025721,2]
[354980568,1740855053161,-500.0,0.00025721,2]
[354980569,1740855053170,-500.0,0.00025721,2]
[354980570,1740855053180,-397.740689,0.00025721,2]
[354980571,1740855053189,-628.05162628,0.00025721,2]
[354980572,1740855053199,-500.0,0.00025721,2]
[354980573,1740855053208,-500.0,0.00025721,2]
[354980574,1740855053217,-500.0,0.00025721,2]
[354980575,1740855053226,-500.0,0.00025721,2]
[354980576,1740855053235,-500.0,0.00025721,2]
[354980577,1740855053245,-500.0,0.00025721,2]
[354980578,1740855053254,-500.0,0.00025721,2]
[354980579,1740855053263,-500.0,0.00025721,2]
[354980580,1740855053272,-500.0,0.00025721,2]
[354980581,1740855053281,-500.0,0.00025721,2]
[354980582,1740855053290,-500.0,0.00025721,2]
[354980583,1740855053299,-500.0,0.00025721,2]
[354980584,1740855053309,-500.0,0.00025721,2]
[354980585,1740855053318,-500.0,0.00025721,2]
[354980586,1740855053327,-500.0,0.00025721,2]
[354980587,1740855053336,-545.98,0.00025721,2]
[354980588,1740855053345,-500.0,0.00025721,2]
[354980589,1740855053354,-500.0,0.00025721,2]
[354980590,1740855053363,-500.0,0.00025721,2]
[354980591,1740855053372,-1053.99,0.00025721,2]
[354980592,1740855053382,-500.0,0.00025721,2]
[354980593,1740855053391,-489.79057776,0.00025721,2]
[354980594,1740855053403,-10.20942224,0.00025721,2]
[354980595,1740855053413,-389.94057776,0.00025721,2]
[354980596,1740855053424,-110.05942224,0.00025721,2]
[354980597,1740855053433,-500.0,0.00025721,2]
[354980598,1740855053442,-14.20257497,0.00025721,2]
[354980599,1740855053841,-153.854782,0.00025621,7]
[354980600,1740855053850,-485.79742503,0.00025721,2]
[354980601,1740855053859,-506.95177876,0.00025721,2]
[354980602,1740855053868,-500.0,0.00025721,2]
[354980603,1740855053878,-566.15,0.00025721,2]
[354980604,1740855053888,-500.0,0.00025721,2]
[354980605,1740855053897,-648.61803591,0.00025721,2]
[354980606,1740855053906,-500.0,0.00025721,2]
[354980607,1740855053915,-626.94,0.00025721,2]
[354980608,1740855053924,-636.71217791,0.00025721,2]
[354980609,1740855053934,-500.0,0.00025721,2]
[354980610,1740855053943,-883.78,0.00025721,2]
[354980611,1740855053952,-500.0,0.00025721,2]
[354980612,1740855053961,-506.25699279,0.00025721,2]
[354980613,1740855053970,-1165.84,0.00025721,2]
[354980614,1740855053979,-740.43,0.00025721,2]
[354980615,1740855053988,-792.86,0.00025721,2]
[354980616,1740855053997,-500.0,0.00025721,2]
[354980617,1740855054007,-500.0,0.00025721,2]
[354980618,1740855054016,-500.0,0.00025721,2]
[354980619,1740855054026,-500.0,0.00025721,2]
[354980620,1740855054039,-500.0,0.00025721,2]
[354980621,1740855054050,-774.89,0.00025721,2]
[354980622,1740855054059,-500.0,0.00025721,2]
[354980623,1740855054068,-1064.35,0.00025721,2]
[354980624,1740855054079,-638.69,0.00025721,2]
[354980625,1740855054088,-500.0,0.00025721,2]
[354980626,1740855054098,-500.0,0.00025721,2]
[354980627,1740855054110,-500.0,0.00025721,2]
[354980628,1740855054119,-500.0,0.00025721,2]
[354980629,1740855054128,-500.0,0.00025721,2]
[354980630,1740855054138,-500.0,0.00025721,2]
[354980631,1740855054148,-500.0,0.00025721,2]
[354980632,1740855054157,-1270.44,0.00025721,2]
[354980633,1740855054166,-500.0,0.00025721,2]
[354980634,1740855054175,-493.79266876,0.00025721,2]
[354980635,1740855054190,-6.20733124,0.00025721,2]
[354980636,1740855054199,-500.0,0.00025721,2]
[354980637,1740855054208,-993.14,0.00025721,2]
[354980638,1740855054217,-500.0,0.00025721,2]
[354980639,1740855054226,-500.0,0.00025721,2]
[354980640,1740855054235,-1206.57,0.00025721,2]
[354980641,1740855054245,-500.0,0.00025721,2]
[354980642,1740855054254,-500.0,0.00025721,2]
[354980643,1740855054263,-500.0,0.00025721,2]
[354980644,1740855054272,-500.0,0.00025721,2]
[354980645,1740855054282,-1456.99,0.00025721,2]
[354980646,1740855054291,-541.35,0.00025721,2]
[354980647,1740855054300,-501.65,0.00025721,2]
[354980648,1740855054309,-1351.44,0.00025721,2]
[354980649,1740855054318,-500.0,0.00025721,2]
[354980650,1740855054328,-500.0,0.00025721,2]
[354980651,1740855054337,-919.06,0.00025721,2]
[354980652,1740855054346,-1000.0,0.00025721,2]
[354980653,1740855054355,-500.0,0.00025721,2]
[354980654,1740855054364,-500.0,0.00025721,2]
[354980655,1740855054373,-500.0,0.00025721,2]
[354980656,1740855054383,-577.61,0.00025721,2]
[354980657,1740855054391,-650.8,0.00025721,2]
[354980658,1740855054400,-525.18,0.00025721,2]
[354980659,1740855054409,-500.0,0.00025721,2]
[354980660,1740855054419,-500.0,0.00025721,2]
[354980661,1740855054428,-623.63,0.00025721,2]
[354980662,1740855054438,-500.0,0.00025721,2]
[354980663,1740855054447,-500.0,0.00025721,2]
[354980664,1740855054457,-500.0,0.00025721,2]
[354980665,1740855054466,-500.0,0.00025721,2]
[354980666,1740855054475,-500.0,0.00025721,2]
[354980667,1740855054485,-545.71,0.00025721,2]
[354980668,1740855054495,-2461.85,0.00025721,2]
[354980669,1740855054505,-505.00300925,0.00025721,2]
[354980670,1740855054514,-500.0,0.00025721,2]
[354980671,1740855054524,-500.0,0.00025721,2]
[354980672,1740855054533,-500.0,0.00025721,2]
[354980673,1740855054542,-500.0,0.00025721,2]
[354980674,1740855054552,-500.0,0.00025721,2]
[354980675,1740855054562,-500.0,0.00025721,2]
[354980676,1740855054571,-500.0,0.00025721,2]
[354980677,1740855054580,-1682.95,0.00025721,2]
[354980678,1740855054590,-500.0,0.00025721,2]
[354980679,1740855054601,-500.0,0.00025721,2]
[354980680,1740855054611,-1741.77,0.00025721,2]
[354980681,1740855054620,-500.0,0.00025721,2]
[354980682,1740855054630,-500.0,0.00025721,2]
[354980683,1740855054639,-500.0,0.00025721,2]
[354980684,1740855054649,-500.0,0.00025721,2]
[354980685,1740855054658,-500.0,0.00025721,2]
[354980686,1740855054667,-500.0,0.00025721,2]
[354980687,1740855054677,-878.3,0.00025721,2]
[354980688,1740855054686,-681.19,0.00025721,2]
[354980689,1740855054696,-500.0,0.00025721,2]
[354980690,1740855054705,-540.1,0.00025721,2]
[354980691,1740855054715,-500.0,0.00025721,2]
[354980692,1740855054724,-500.0,0.00025721,2]
[354980693,1740855054733,-500.0,0.00025721,2]
[354980694,1740855054743,-500.0,0.00025721,2]
[354980695,1740855054752,-500.0,0.00025721,2]
[354980696,1740855054761,-500.0,0.00025721,2]
[354980697,1740855054771,-579.78,0.00025721,2]
[354980698,1740855054780,-500.0,0.00025721,2]
[354980699,1740855054790,-647.93,0.00025721,2]
[354980700,1740855054800,-500.0,0.00025721,2]
[354980701,1740855054809,-965.74,0.00025721,2]
[354980702,1740855054819,-500.0,0.00025721,2]
[354980703,1740855054829,-500.0,0.00025721,2]
[354980704,1740855054838,-500.0,0.00025721,2]
[354980705,1740855054848,-500.0,0.00025721,2]
[354980706,1740855054857,-500.0,0.00025721,2]
[354980707,1740855054867,-500.0,0.00025721,2]
[354980708,1740855054876,-2423.56,0.00025721,2]
[354980709,1740855054886,-500.0,0.00025721,2]
[354980710,1740855054895,-500.0,0.00025721,2]
[354980711,1740855054905,-500.0,0.00025721,2]
[354980712,1740855054915,-500.0,0.00025721,2]
[354980713,1740855054924,-500.0,0.00025721,2]
[354980714,1740855054935,-500.0,0.00025721,2]
[354980715,1740855054945,-531.2,0.00025721,2]
[354980716,1740855054954,-500.0,0.00025721,2]
[354980717,1740855054964,-247.960495,0.00025721,7]
[354980718,1740855054973,-151.0,0.00025721,7]
[354980719,1740855054983,-247.960495,0.00025721,7]
[354980720,1740855054993,-500.0,0.00025721,2]
[354980721,1740855055003,-925.08731172,0.00025721,2]
[354980722,1740855055017,-49.31268828,0.00025721,2]
[354980723,1740855055028,-258.00095126,0.00025721,2]
[354980727,1740855370441,250.0,0.000246,30]
[354980728,1740855925202,1000.0,0.00025,30]
[354980729,1740855938135,-176.71665944,0.00023521,2]
[354980730,1740855938157,-326.00109871,0.00023521,2]
[354980731,1740856028134,-260.08996651,0.00023521,2]
[354980732,1740856028157,-105.12398564,0.00023521,2]
[354980733,1740856035089,-1172.93711693,0.00023521,2]
[354980734,1740856035117,-300.0,0.00023798,2]
[354980735,1740856035143,-411.08992113,0.00023799,2]
[354980736,1740856040107,-478.41417699,0.00023799,2]
[354980737,1740856046084,-162.86189063,0.00023799,2]
[354980738,1740856053620,939.60964312,0.00024899,30]
[354980739,1740856152104,-201.451934,0.00023647,2]
[354980740,1740856152126,-300.0,0.00023798,2]
[354980741,1740856152147,-1256.06729807,0.00023799,2]
[354980742,1740856153097,-22591.56671318,0.00023799,2]
[354980743,1740856153118,-174.721314,0.00023805,2]
[354980744,1740856153140,-250.0,0.00023812,2]
[354980745,1740856153160,-205.3380016,0.00023922,2]
[354980746,1740856153181,-500.0,0.00024657,2]